bitfinex/quotes_BTCUSD_20240719
["timestamp","ask_amount","ask_price","bid_price","bid_amount"]
[1721421605924,0.06734,67084.0,67080.0,0.150075]
[1721421606299,0.05897,67084.0,67081.0,0.149073]
[1721421606523,0.05897,67084.0,67082.0,0.002794]
[1721421607580,0.05897,67084.0,67081.0,0.149073]
[1721421607863,0.05897,67084.0,67081.0,0.149071]
[1721421608510,0.05897,67084.0,67081.0,0.150071]
[1721421608715,0.05897,67084.0,67082.0,0.15157347]
[1721421608914,0.149061,67087.0,67083.0,0.0826]
[1721421609210,0.16912577,67086.0,67083.0,0.0826]
[1721421609404,0.07916166,67085.0,67083.0,0.0826]
[1721421609636,0.149061,67087.0,67082.0,0.15157347]
[1721421609840,0.07913903,67086.0,67082.0,0.15157347]
[1721421610173,0.07913903,67086.0,67083.0,0.001]
[1721421610490,0.07913903,67086.0,67083.0,0.150068]
[1721421610693,0.14906,67087.0,67083.0,0.150068]
[1721421611457,0.14906,67087.0,67083.0,0.149068]
[1721421611582,0.212798,67088.0,67083.0,0.149068]
[1721421611784,0.07898548,67087.0,67083.0,0.150068]
[1721421612405,0.212798,67088.0,67084.0,0.00249358]
[1721421612406,0.06374,67088.0,67084.0,0.00249358]
[1721421612600,0.07898812,67087.0,67086.0,0.149061]
[1721421612801,0.07898812,67087.0,67086.0,0.15154569]
[1721421613231,0.00084,67088.0,67086.0,0.37182646]
[1721421613438,0.00084,67088.0,67086.0,0.29684569]
[1721421613823,0.00084,67088.0,67086.0,0.23414569]
[1721421614828,0.00084,67088.0,67087.0,0.14906]
[1721421615026,0.00084,67088.0,67087.0,0.15154025]
[1721421616512,0.00084,67088.0,67087.0,0.00248025]
[1721421616878,0.00084,67088.0,67087.0,0.00348025]
[1721421617096,0.00084,67088.0,67087.0,0.15254025]
[1721421618187,0.00084,67088.0,67087.0,0.16026954]
[1721421620056,0.00084,67089.0,67088.0,0.00753]
[1721421620268,0.00084,67089.0,67088.0,0.01772569]
[1721421620490,0.00084,67089.0,67088.0,0.16678269]
[1721421620700,0.00084,67089.0,67088.0,0.01772569]
[1721421621266,0.00084,67089.0,67088.0,0.16678269]
[1721421621656,0.00084,67089.0,67088.0,0.16778269]
[1721421622229,0.00084,67089.0,67088.0,0.16878269]
[1721421622818,0.00084,67089.0,67088.0,0.01972569]
[1721421623226,0.00084,67089.0,67088.0,0.16878269]
[1721421626606,0.00084,67089.0,67088.0,0.01972569]
[1721421626968,0.00084,67089.0,67088.0,0.01219569]
[1721421627390,0.00084,67089.0,67088.0,0.16125269]
[1721421633375,0.00084,67089.0,67088.0,0.30125269]
[1721421633596,0.00084,67089.0,67088.0,0.59936769]
[1721421636517,0.00084,67089.0,67088.0,1.64809443]
[1721421636946,0.00084,67089.0,67088.0,1.7538523]
[1721421637057,0.00084,67089.0,67088.0,2.5238523]
[1721421637257,0.00084,67089.0,67088.0,2.77720187]
[1721421637896,0.00084,67089.0,67088.0,2.77620187]
[1721421638102,0.00084,67089.0,67088.0,2.77722318]
[1721421638307,0.00084,67089.0,67088.0,2.78122318]
[1721421638506,0.00084,67089.0,67088.0,2.78022318]
[1721421638906,0.00084,67089.0,67088.0,2.79422318]
[1721421639564,0.00084,67089.0,67088.0,3.59233818]
[1721421639886,0.00084,67089.0,67088.0,3.64233818]
[1721421641202,0.00084,67089.0,67088.0,3.536559]
[1721421641428,0.00084,67089.0,67088.0,3.64230515]
[1721421641804,0.00084,67089.0,67088.0,3.68691106]
[1721421642494,0.00084,67089.0,67088.0,3.62830515]
[1721421642864,0.00084,67089.0,67088.0,3.62791816]
[1721421643384,0.00084,67089.0,67088.0,3.64193249]
[1721421643525,0.00084,67089.0,67088.0,3.98604749]
[1721421643726,0.00084,67089.0,67088.0,4.05362873]
[1721421643926,0.00084,67089.0,67088.0,4.02104749]
[1721421644127,0.00084,67089.0,67088.0,4.36826353]
[1721421644331,0.00084,67089.0,67088.0,4.35139167]
[1721421644529,0.00084,67089.0,67088.0,4.00690705]
[1721421644851,0.00084,67089.0,67088.0,4.00890705]
[1721421645052,0.00084,67089.0,67088.0,3.76655748]
[1721421645256,0.00084,67089.0,67088.0,3.53274248]
[1721421645455,0.00084,67089.0,67088.0,3.51874248]
[1721421645656,0.00084,67089.0,67088.0,3.54674248]
[1721421646238,0.00084,67089.0,67088.0,3.53274248]
[1721421646438,0.00084,67089.0,67088.0,3.54674248]
[1721421647055,0.00084,67089.0,67088.0,3.52074248]
[1721421647471,0.00084,67089.0,67088.0,3.53274248]
[1721421647663,0.00084,67089.0,67088.0,3.58329721]
[1721421647863,0.00084,67089.0,67088.0,3.73764678]
[1721421648064,0.00084,67089.0,67088.0,3.54529721]
[1721421650593,0.00084,67089.0,67088.0,3.59529721]
[1721421650795,0.00084,67089.0,67088.0,3.43912244]
[1721421650999,0.00084,67089.0,67088.0,3.54509775]
[1721421651661,0.00084,67089.0,67088.0,3.59509775]
[1721421651866,0.00084,67089.0,67088.0,3.54509775]
[1721421652038,0.00084,67089.0,67088.0,3.59509775]
[1721421652340,0.00084,67089.0,67088.0,3.74944732]
[1721421653228,0.00084,67089.0,67088.0,3.69944732]
[1721421653426,0.00084,67089.0,67088.0,3.74944732]
[1721421653840,0.00084,67089.0,67088.0,3.79944732]
[1721421654037,0.00084,67089.0,67088.0,3.79957941]
[1721421654611,0.00084,67089.0,67088.0,3.78557941]
[1721421655004,0.00084,67089.0,67088.0,3.77557941]
[1721421655132,0.00084,67089.0,67088.0,3.78757941]
[1721421655350,0.00084,67089.0,67088.0,4.34406441]
[1721421655556,0.00084,67089.0,67088.0,4.41157636]
[1721421655750,0.00084,67089.0,67088.0,4.41983233]
[1721421655949,0.00837,67091.0,67090.0,1.886988]
[1721421656159,0.00837,67091.0,67090.0,3.03390154]
[1721421656377,0.00837,67091.0,67090.0,3.18455927]
[1721421656708,0.00837,67091.0,67090.0,3.48266627]
[1721421657028,0.00837,67091.0,67090.0,3.43816291]
[1721421657442,0.00837,67091.0,67090.0,3.58200854]
[1721421657628,0.00837,67091.0,67090.0,4.18843176]
[1721421657967,0.00837,67095.0,67094.0,0.1]
[1721421658152,0.00837,67095.0,67094.0,1.95249627]
[1721421658361,0.00837,67095.0,67094.0,3.51855885]
[1721421658591,0.00837,67095.0,67094.0,3.51576485]
[1721421658809,0.00837,67095.0,67094.0,4.11194285]
[1721421659015,0.00837,67095.0,67094.0,4.17140336]
[1721421659416,0.00837,67095.0,67094.0,4.43540336]
[1721421659666,0.60714871,67124.0,67108.0,0.5]
[1721421659667,0.0638,67124.0,67108.0,0.5]
[1721421659885,0.0638,67124.0,67108.0,3.71255674]
[1721421660057,0.0638,67124.0,67108.0,3.76484695]
[1721421660467,0.0638,67124.0,67108.0,3.77149102]
[1721421661299,0.0638,67124.0,67108.0,3.76484695]
[1721421661575,0.0638,67124.0,67108.0,3.93107802]
[1721421661908,0.0638,67124.0,67108.0,3.94107802]
[1721421662332,0.0638,67124.0,67108.0,3.93107802]
[1721421662545,0.0638,67124.0,67108.0,3.94207802]
[1721421662967,0.0638,67124.0,67108.0,3.95261017]
[1721421663172,0.0638,67124.0,67108.0,3.85683961]
[1721421663370,0.0638,67124.0,67108.0,3.96342349]
[1721421663591,0.0638,67124.0,67108.0,3.94942349]
[1721421664002,0.062,67127.0,67108.0,3.94942349]
[1721421664601,0.062,67127.0,67108.0,4.19942349]
[1721421665060,0.062,67127.0,67108.0,4.21342349]
[1721421665269,0.062,67127.0,67108.0,4.11512349]
[1721421665491,0.062,67127.0,67108.0,4.18842349]
[1721421665694,0.062,67127.0,67108.0,4.21342349]
[1721421665992,0.062,67127.0,67108.0,4.20242349]
[1721421666089,0.062,67127.0,67108.0,4.21642349]
[1721421666495,0.062,67127.0,67108.0,4.21672611]
[1721421669360,0.062,67127.0,67108.0,4.20272611]
[1721421669607,0.062,67127.0,67108.0,4.21672611]
[1721421669868,0.0646,67127.0,67108.0,4.21648953]
[1721421670100,0.0811774,67131.0,67108.0,2.83667502]
[1721421670101,0.1453,67117.0,67108.0,2.83667502]
[1721421670340,0.1453,67117.0,67108.0,3.29721275]
[1721421670574,0.1453,67117.0,67108.0,3.04721275]
[1721421670810,0.1453,67117.0,67108.0,3.04237601]
[1721421671035,0.1453,67117.0,67108.0,3.19672558]
[1721421671265,0.0646,67117.0,67108.0,3.19672558]
[1721421671530,0.0646,67117.0,67108.0,3.25902558]
[1721421672017,0.0646,67117.0,67108.0,3.27302558]
[1721421672212,0.0646,67117.0,67108.0,3.28702558]
[1721421672348,0.0646,67117.0,67108.0,3.63005258]
[1721421672774,0.0646,67117.0,67108.0,3.65805258]
[1721421672996,0.1453,67120.0,67108.0,3.72375258]
[1721421675152,0.0646,67120.0,67108.0,3.72375258]
[1721421675308,0.0777,67124.0,67108.0,3.97375258]
[1721421675513,0.0777,67124.0,67110.0,1.639099]
[1721421675514,0.065,67122.0,67110.0,1.639099]
[1721421675762,0.065,67122.0,67110.0,2.8395289]
[1721421675958,0.065,67122.0,67110.0,2.93157971]
[1721421676158,0.065,67122.0,67110.0,2.98157971]
[1721421676618,0.065,67122.0,67110.0,2.93157971]
[1721421676819,0.065,67122.0,67110.0,2.99557971]
[1721421677878,0.065,67122.0,67110.0,3.00957971]
[1721421678105,0.065,67122.0,67110.0,2.95957971]
[1721421678624,0.065,67122.0,67110.0,3.00957971]
[1721421679056,0.065,67122.0,67110.0,2.90303596]
[1721421679260,0.065,67122.0,67110.0,3.07053273]
[1721421679460,0.065,67122.0,67110.0,3.32053273]
[1721421679662,0.1397,67124.0,67110.0,3.32053273]
[1721421681309,0.1397,67124.0,67110.0,3.37042453]
[1721421681514,0.1397,67124.0,67110.0,3.41488744]
[1721421681721,0.1397,67124.0,67110.0,3.37042453]
[1721421682120,0.062,67124.0,67110.0,3.39342453]
[1721421682277,0.0004774,67131.0,67110.0,3.7393334]
[1721421682485,0.0004774,67131.0,67110.0,4.2875932]
[1721421682702,0.0004774,67131.0,67110.0,4.23823242]
[1721421683117,0.0004774,67131.0,67110.0,4.21023242]
[1721421683317,0.0004774,67131.0,67110.0,4.23823242]
[1721421683516,6.4e-07,67111.0,67110.0,4.23823242]
[1721421684473,0.0004774,67131.0,67128.0,1.840721]
[1721421684792,0.0004774,67131.0,67128.0,3.0392557]
[1721421685778,0.0004774,67131.0,67128.0,3.0532557]
[1721421687964,0.0004774,67131.0,67128.0,3.0602557]
[1721421688716,0.0004774,67131.0,67128.0,2.95340274]
[1721421688924,0.0004774,67131.0,67128.0,3.12061754]
[1721421690791,0.0004774,67131.0,67128.0,3.12059827]
[1721421691611,0.0004774,67131.0,67128.0,3.53473627]
[1721421691879,0.0004774,67131.0,67128.0,3.95817427]
[1721421692084,0.0004774,67131.0,67128.0,3.98119688]
[1721421692403,0.0004774,67131.0,67128.0,4.21719688]
[1721421692601,0.0004774,67131.0,67128.0,4.21019688]
[1721421692844,0.0004774,67131.0,67128.0,4.22419688]
[1721421693021,0.0004774,67131.0,67128.0,4.24411788]
[1721421693227,0.0004774,67131.0,67128.0,4.29983792]
[1721421693420,0.0004774,67131.0,67128.0,4.23311788]
[1721421693627,0.00284,67129.0,67128.0,4.24711788]
[1721421693811,0.00284,67129.0,67128.0,4.30025859]
[1721421694014,0.0004774,67131.0,67130.0,2.036538]
[1721421694220,0.0004774,67131.0,67130.0,4.20629836]
[1721421694425,0.0004774,67131.0,67130.0,4.11735949]
[1721421695183,0.0004774,67131.0,67130.0,3.61765101]
[1721421695361,0.0004774,67131.0,67130.0,4.11818729]
[1721421695947,0.0004774,67131.0,67130.0,4.14618729]
[1721421696348,0.0004774,67131.0,67130.0,4.39618729]
[1721421696600,0.0004774,67131.0,67130.0,4.34837669]
[1721421697266,0.0004774,67131.0,67130.0,4.49909444]
[1721421697473,0.0004774,67131.0,67130.0,4.34837669]
[1721421697845,0.0004774,67131.0,67130.0,4.88567669]
[1721421697970,0.0004774,67131.0,67130.0,4.97458187]
[1721421698176,0.0004774,67131.0,67130.0,4.79781688]
[1721421698423,0.0004774,67131.0,67130.0,4.3590912]
[1721421698575,0.0004774,67131.0,67130.0,3.90117667]
[1721421698776,0.0004774,67131.0,67130.0,4.0072669]
[1721421698986,0.0004774,67131.0,67130.0,3.5945669]
[1721421699185,0.0004774,67131.0,67130.0,3.58150761]
[1721421699383,0.0004774,67131.0,67130.0,3.04582839]
[1721421699589,0.0004774,67131.0,67130.0,3.13312839]
[1721421700635,0.0004774,67131.0,67130.0,2.24789939]
[1721421700841,0.0004774,67131.0,67130.0,1.44789939]
[1721421701041,0.1391,67132.0,67130.0,0.29638174]
[1721421701241,0.1391,67132.0,67131.0,1.29711574]
[1721421701959,0.1391,67132.0,67131.0,2.23952881]
[1721421702111,0.0613,67132.0,67131.0,2.23952881]
[1721421703402,0.0613,67132.0,67131.0,2.24852881]
[1721421704094,0.0628,67135.0,67131.0,2.01771881]
[1721421704319,0.1431,67138.0,67137.0,0.446847]
[1721421704455,0.1431,67138.0,67137.0,0.99912674]
[1721421704651,0.1431,67138.0,67137.0,1.29702474]
[1721421704854,0.1431,67138.0,67137.0,1.59492274]
[1721421704855,0.0628,67138.0,67137.0,1.59492274]
[1721421705081,0.0628,67138.0,67137.0,1.73733581]
[1721421705257,0.0601,67144.0,67137.0,0.69469281]
[1721421705459,0.0601,67144.0,67143.0,1.042548]
[1721421705657,0.0601,67144.0,67143.0,1.19692974]
[1721421706457,0.0611,67144.0,67143.0,1.19692974]
[1721421706866,0.0601,67144.0,67143.0,1.19692974]
[1721421707126,0.0601,67144.0,67143.0,1.20092974]
[1721421708515,0.0601,67144.0,67143.0,1.35527931]
[1721421709087,0.0601,67144.0,67143.0,1.36927931]
[1721421709314,0.0596226,67144.0,67143.0,1.36927931]
[1721421712451,0.0596226,67144.0,67143.0,1.21492974]
[1721421716190,0.0596226,67144.0,67143.0,0.66989756]
[1721421716402,0.0596226,67144.0,67143.0,0.61918774]
[1721421716804,0.0596226,67144.0,67143.0,0.61752482]
[1721421719386,0.0596226,67144.0,67143.0,0.91539582]
[1721421719770,0.0596226,67144.0,67143.0,1.0467235]
[1721421720976,0.0596226,67144.0,67143.0,0.91539582]
[1721421721196,0.065,67148.0,67143.0,0.47025274]
[1721421721399,0.065,67148.0,67147.0,0.446779]
[1721421721600,0.065,67148.0,67147.0,0.744632]
[1721421722234,0.065,67148.0,67147.0,0.86472047]
[1721421723276,0.065,67148.0,67147.0,1.91686674]
[1721421723478,0.03741095,67150.0,67148.0,0.744622]
[1721421723653,0.03741095,67150.0,67148.0,1.70590374]
[1721421723853,0.03741095,67150.0,67148.0,1.81491458]
[1721421724056,0.03741095,67150.0,67148.0,2.18021315]
[1721421726475,0.03741095,67150.0,67148.0,2.19421315]
[1721421726672,0.03741095,67150.0,67148.0,2.19396098]
[1721421727854,0.03741095,67150.0,67148.0,2.17996098]
[1721421728632,0.03741095,67150.0,67148.0,2.19396098]
[1721421728850,0.03741095,67150.0,67148.0,2.03961141]
[1721421729968,0.03741095,67150.0,67148.0,2.03958116]
[1721421730345,0.03741095,67150.0,67148.0,2.10068116]
[1721421731601,0.03741095,67150.0,67148.0,2.18018116]
[1721421732101,0.03741095,67150.0,67148.0,2.11908116]
[1721421733018,0.03741095,67150.0,67148.0,2.27343073]
[1721421733250,0.03741095,67150.0,67148.0,2.16470231]
[1721421733490,0.03741095,67150.0,67148.0,2.11925262]
[1721421733911,0.0015226,67149.0,67148.0,2.11925262]
[1721421735051,0.0015226,67149.0,67148.0,2.03975262]
[1721421735417,0.1416226,67149.0,67148.0,2.03975262]
[1721421736394,0.1416226,67149.0,67148.0,2.04024741]
[1721421736819,0.1416226,67149.0,67148.0,0.99231867]
[1721421736984,0.1416226,67149.0,67148.0,0.734]
[1721421737176,0.1416226,67149.0,67148.0,0.882924]
[1721421738413,0.1416226,67149.0,67148.0,1.180773]
[1721421739625,0.1416226,67149.0,67148.0,0.882924]
[1721421739834,0.1416226,67149.0,67148.0,0.734]
[1721421742154,0.1416226,67149.0,67148.0,0.882924]
[1721421742560,0.1416226,67149.0,67148.0,1.180773]
[1721421744684,0.1416226,67149.0,67148.0,0.734]
[1721421744818,0.1416226,67149.0,67148.0,0.882924]
[1721421748351,0.1416226,67149.0,67148.0,1.180773]
[1721421752185,0.1416226,67149.0,67148.0,1.478622]
[1721421752810,0.0632226,67149.0,67148.0,1.478622]
[1721421754021,0.0015226,67149.0,67148.0,1.478622]
[1721421754864,0.0015226,67149.0,67148.0,2.08520231]
[1721421755851,0.0015226,67149.0,67148.0,1.93085274]
[1721421757870,0.0015226,67149.0,67148.0,1.93177674]
[1721421758003,0.0023626,67149.0,67148.0,1.93177674]
[1721421759061,0.0640626,67149.0,67148.0,1.479546]
[1721421760609,0.0640626,67149.0,67148.0,1.181697]
[1721421762921,0.0640626,67149.0,67148.0,1.18137239]
[1721421764254,0.0023626,67149.0,67148.0,1.33572196]
[1721421764458,0.0023626,67149.0,67148.0,1.63357096]
[1721421765317,0.0023626,67149.0,67148.0,1.74233922]
[1721421765512,0.0023626,67149.0,67148.0,1.74233913]
[1721421767082,0.0023626,67149.0,67148.0,2.1888203]
[1721421768632,0.0023626,67149.0,67148.0,2.37790113]
[1721421768864,0.0023626,67149.0,67148.0,2.53149953]
[1721421770393,0.0023626,67149.0,67148.0,2.51749953]
[1721421770578,0.0023626,67149.0,67148.0,2.53149953]
[1721421770793,0.0023626,67149.0,67148.0,2.6858491]
[1721421770923,0.0023626,67149.0,67148.0,2.53149953]
[1721421771128,0.0023626,67149.0,67148.0,2.51749953]
[1721421771983,0.0023626,67149.0,67148.0,2.51831463]
[1721421772398,0.0023626,67149.0,67148.0,2.53231463]
[1721421773064,0.0023626,67149.0,67148.0,2.98764693]
[1721421773310,0.0023626,67149.0,67148.0,3.5720804]
[1721421773514,0.0023626,67149.0,67148.0,3.66141581]
[1721421773916,0.0023626,67149.0,67148.0,3.5720804]
[1721421774237,0.0023626,67149.0,67148.0,3.5580804]
[1721421774817,0.0023626,67149.0,67148.0,3.55827482]
[1721421775339,0.0023626,67149.0,67148.0,3.40292525]
[1721421775583,0.0023626,67149.0,67148.0,3.4839151]
[1721421775760,0.0023626,67149.0,67148.0,3.48791511]
[1721421775972,0.0023626,67149.0,67148.0,3.48391511]
[1721421776141,0.0023626,67149.0,67148.0,3.46991511]
[1721421776345,0.0023626,67149.0,67148.0,3.49091511]
[1721421776752,0.0023626,67149.0,67148.0,3.49098005]
[1721421777398,0.0023626,67149.0,67148.0,3.16089269]
[1721421777605,0.0023626,67149.0,67148.0,3.1392507]
[1721421777799,0.0023626,67149.0,67148.0,3.64530791]
[1721421778522,0.0023626,67149.0,67148.0,3.64530948]
[1721421780692,0.0023626,67149.0,67148.0,3.49095991]
[1721421781091,0.0023626,67149.0,67148.0,3.49105954]
[1721421783485,0.0023626,67149.0,67148.0,3.16097287]
[1721421784227,0.0023626,67149.0,67148.0,3.1608902]
[1721421787504,0.0023626,67149.0,67148.0,3.09397801]
[1721421788879,0.0023626,67149.0,67148.0,3.24832038]
[1721421789665,0.0023626,67149.0,67148.0,3.09397081]
[1721421790490,0.00218336,67149.0,67148.0,3.09397081]
[1721421793240,0.00218336,67149.0,67148.0,3.02847081]
[1721421793761,0.00218336,67149.0,67148.0,3.08977081]
[1721421793972,0.00218336,67149.0,67148.0,3.08984131]
[1721421794151,0.00218336,67149.0,67148.0,3.24419088]
[1721421794356,0.00218336,67149.0,67148.0,3.64123858]
[1721421794609,0.00218336,67149.0,67148.0,3.57426977]
[1721421795957,0.00218336,67149.0,67148.0,3.68560257]
[1721421796189,0.00218336,67149.0,67148.0,3.57398788]
[1721421797102,0.00218336,67149.0,67148.0,3.1350507]
[1721421797294,0.00218336,67149.0,67148.0,3.57408797]
[1721421797497,0.00218336,67149.0,67148.0,3.56408797]
[1721421798072,0.00218336,67149.0,67148.0,3.4097384]
[1721421799046,0.00218336,67149.0,67148.0,3.7075874]
[1721421799684,0.00218336,67149.0,67148.0,3.86209445]
[1721421799882,0.00218336,67149.0,67148.0,3.84809445]
[1721421800240,0.00218336,67149.0,67148.0,3.59861511]
[1721421800414,0.00218336,67149.0,67148.0,3.86221144]
[1721421800624,0.00218336,67149.0,67148.0,3.84821144]
[1721421800986,0.00218336,67149.0,67148.0,3.85521144]
[1721421801189,0.00218336,67149.0,67148.0,4.08551868]
[1721421801383,0.00218336,67149.0,67148.0,4.07151868]
[1721421801583,0.00218336,67149.0,67148.0,4.08151868]
[1721421801792,0.00218336,67149.0,67148.0,3.92716911]
[1721421801995,0.00218336,67149.0,67148.0,4.03874567]
[1721421802216,0.00218336,67149.0,67148.0,3.97694536]
[1721421802425,0.00218336,67149.0,67148.0,3.96294536]
[1721421802869,0.00218336,67149.0,67148.0,3.95294536]
[1721421803213,0.00218336,67149.0,67148.0,2.78141802]
[1721421803495,0.00218336,67149.0,67148.0,2.19765029]
[1721421803697,0.00218336,67149.0,67148.0,2.63069889]
[1721421804066,0.00218336,67149.0,67148.0,2.62769889]
[1721421804271,0.00218336,67149.0,67148.0,2.64169889]
[1721421806225,0.00218336,67149.0,67148.0,2.70865123]
[1721421806542,0.00218336,67149.0,67148.0,2.84745123]
[1721421806745,0.00218336,67149.0,67148.0,2.73820447]
[1721421806944,0.00218336,67149.0,67148.0,3.00176976]
[1721421807298,0.00218336,67149.0,67148.0,3.33185174]
[1721421809868,0.00218336,67149.0,67148.0,2.8256017]
[1721421810042,0.00218336,67149.0,67148.0,3.33189843]
[1721421810202,0.00218336,67149.0,67148.0,3.26492387]
[1721421812402,0.00218336,67149.0,67148.0,3.35422328]
[1721421813210,0.00218336,67149.0,67148.0,3.35428181]
[1721421813923,0.00218336,67149.0,67148.0,3.65213081]
[1721421814876,0.00218336,67149.0,67148.0,3.49778124]
[1721421816051,0.00218336,67149.0,67148.0,3.40845703]
[1721421816349,0.00218336,67149.0,67148.0,3.62474955]
[1721421816550,0.00218336,67149.0,67148.0,4.05659661]
[1721421816773,0.00218336,67149.0,67148.0,3.92259855]
[1721421816931,0.00218336,67149.0,67148.0,4.07694812]
[1721421817293,0.00218336,67149.0,67148.0,4.39994812]
[1721421817567,0.00218336,67149.0,67148.0,4.38594812]
[1721421817704,0.00218336,67149.0,67148.0,4.39994812]
[1721421817903,0.00218336,67149.0,67148.0,4.38894812]
[1721421818104,0.00218336,67149.0,67148.0,4.40294812]
[1721421818385,0.00218336,67149.0,67148.0,4.53688504]
[1721421818763,0.00218336,67149.0,67148.0,4.53688439]
[1721421818963,0.00218336,67149.0,67148.0,4.40294747]
[1721421819379,0.00218336,67149.0,67148.0,3.90179048]
[1721421819576,0.00218336,67149.0,67148.0,4.53728432]
[1721421819776,0.00218336,67149.0,67148.0,4.52328432]
[1721421820002,0.00218336,67149.0,67148.0,4.53728432]
[1721421821323,0.00218336,67149.0,67148.0,4.40336523]
[1721421822790,0.00218336,67149.0,67148.0,4.34154807]
[1721421823010,0.00218336,67149.0,67148.0,4.40334431]
[1721421826041,0.00218336,67149.0,67148.0,4.40342549]
[1721421826858,0.00218336,67149.0,67148.0,4.24907592]
[1721421829191,0.00218336,67149.0,67148.0,4.24907611]
[1721421829391,0.00218336,67149.0,67148.0,4.33607611]
[1721421829664,0.00218336,67149.0,67148.0,4.28607611]
[1721421829870,0.00218336,67149.0,67148.0,4.33607611]
[1721421830496,0.00218336,67149.0,67148.0,4.26307611]
[1721421830708,0.00218336,67149.0,67148.0,3.82642711]
[1721421830903,0.00218336,67149.0,67148.0,3.76463084]
[1721421831104,0.00218336,67149.0,67148.0,3.67763084]
[1721421831311,0.00218336,67149.0,67148.0,3.76463084]
[1721421831514,0.00218336,67149.0,67148.0,3.51463084]
[1721421832456,0.14458336,67149.0,67148.0,2.64596385]
[1721421832686,0.06268336,67149.0,67148.0,3.04292846]
[1721421832883,0.06268336,67149.0,67148.0,2.2128853]
[1721421833088,0.06268336,67149.0,67148.0,2.64596385]
[1721421833293,0.06268336,67149.0,67148.0,2.14596385]
[1721421833500,0.06268336,67149.0,67148.0,2.64596385]
[1721421834550,0.06268336,67149.0,67148.0,3.19730788]
[1721421834551,0.00218336,67149.0,67148.0,3.19730788]
[1721421835735,0.00218336,67149.0,67148.0,3.19685245]
[1721421835946,0.00218336,67149.0,67148.0,3.21915924]
[1721421836354,0.00218336,67149.0,67148.0,3.21915777]
[1721421836600,0.00218336,67149.0,67148.0,3.58227836]
[1721421836885,0.00218336,67149.0,67148.0,3.28625643]
[1721421837030,0.00218336,67149.0,67148.0,3.72654746]
[1721421837431,0.00218336,67149.0,67148.0,3.97654746]
[1721421838056,0.00218336,67149.0,67148.0,4.27439646]
[1721421838258,0.00218336,67149.0,67148.0,3.97654746]
[1721421838836,0.00218336,67149.0,67148.0,3.97675663]
[1721421839435,0.00218336,67149.0,67148.0,4.27460563]
[1721421840086,0.00218336,67149.0,67148.0,3.97675663]
[1721421841264,0.00218336,67149.0,67148.0,3.64670989]
[1721421841472,0.00218336,67149.0,67148.0,3.97675663]
[1721421842251,0.00218336,67149.0,67148.0,3.82240706]
[1721421842472,0.00218336,67149.0,67148.0,3.88420689]
[1721421844243,0.00078336,67149.0,67148.0,3.88420689]
[1721421844809,0.00078336,67149.0,67148.0,3.88420688]
[1721421845345,0.00078336,67149.0,67148.0,3.88420076]
[1721421845558,0.00078336,67149.0,67148.0,4.03855033]
[1721421845753,0.00078336,67149.0,67148.0,3.91149549]
[1721421846178,0.00078336,67149.0,67148.0,3.84569549]
[1721421846334,0.00078336,67149.0,67148.0,3.91095693]
[1721421846740,0.00078336,67149.0,67148.0,3.84569899]
[1721421848543,0.00078336,67149.0,67148.0,3.69134942]
[1721421848912,0.00078336,67149.0,67148.0,3.61304942]
[1721421849112,0.00078336,67149.0,67148.0,3.52380132]
[1721421849321,0.00078336,67149.0,67148.0,3.36080132]
[1721421849878,0.14548336,67149.0,67148.0,2.54289102]
[1721421850160,0.14548336,67149.0,67148.0,2.21284429]
[1721421850990,0.14548336,67149.0,67148.0,2.10239244]
[1721421851213,0.14548336,67149.0,67148.0,2.21361532]
[1721421853179,0.00078336,67149.0,67148.0,2.21361532]
[1721421853577,0.00078336,67149.0,67148.0,2.30061532]
[1721421854186,0.00078336,67149.0,67148.0,2.12245213]
[1721421854388,0.00078336,67149.0,67148.0,2.30070153]
[1721421854789,0.00078336,67149.0,67148.0,3.51602644]
[1721421854989,0.00078336,67149.0,67148.0,3.78233334]
[1721421855285,0.00078336,67149.0,67148.0,3.85533334]
[1721421855402,0.00078336,67149.0,67148.0,4.53706678]
[1721421855823,0.00078336,67149.0,67148.0,4.40318234]
[1721421857259,0.00078336,67149.0,67148.0,4.35318234]
[1721421857459,0.00078336,67149.0,67148.0,4.35325143]
[1721421857862,0.00078336,67149.0,67148.0,3.82805286]
[1721421858236,0.00078336,67149.0,67148.0,3.76625888]
[1721421858437,0.00078336,67149.0,67148.0,3.51625888]
[1721421858996,0.00078336,67149.0,67148.0,3.50225888]
[1721421859191,0.00078336,67149.0,67148.0,3.51625888]
[1721421859343,0.00078336,67149.0,67148.0,3.01625888]
[1721421859546,0.00078336,67149.0,67148.0,3.50225888]
[1721421859751,0.00078336,67149.0,67148.0,3.67060845]
[1721421859950,0.00078336,67149.0,67148.0,3.51625888]
[1721421860343,0.00078336,67149.0,67148.0,3.0748091]
[1721421860539,0.00078336,67149.0,67148.0,3.8469953]
[1721421861987,0.00078336,67149.0,67148.0,2.89690686]
[1721421862192,0.00078336,67149.0,67148.0,2.80763833]
[1721421862389,0.00078336,67149.0,67148.0,2.5445399]
[1721421862860,0.00078336,67149.0,67148.0,3.0445399]
[1721421863067,0.00078336,67149.0,67148.0,3.19888947]
[1721421863285,0.00078336,67149.0,67148.0,3.24921408]
[1721421863720,0.00078336,67149.0,67148.0,3.24870382]
[1721421866182,0.00078336,67149.0,67148.0,3.1371264]
[1721421866390,0.00078336,67149.0,67148.0,3.62362795]
[1721421866654,0.00078336,67149.0,67148.0,3.62362032]
[1721421866858,0.00078336,67149.0,67148.0,3.66362038]
[1721421867027,0.00078336,67149.0,67148.0,3.66388874]
[1721421867237,0.00078336,67149.0,67148.0,3.81823831]
[1721421869307,0.00078336,67149.0,67148.0,3.66388874]
[1721421870205,0.00078336,67149.0,67148.0,3.25663121]
[1721421870415,0.00078336,67149.0,67148.0,3.81028293]
[1721421870596,0.00078336,67149.0,67148.0,3.77787928]
[1721421870775,0.00078336,67149.0,67148.0,4.10793518]
[1721421871379,0.00078336,67149.0,67148.0,4.26228475]
[1721421872439,0.00078336,67149.0,67148.0,4.26229467]
[1721421872610,0.00078336,67149.0,67148.0,4.19763145]
[1721421872787,0.00078336,67149.0,67148.0,4.25973145]
[1721421872991,0.00078336,67149.0,67148.0,4.14813467]
[1721421873391,0.00078336,67149.0,67148.0,3.81808236]
[1721421873619,0.00078336,67149.0,67148.0,4.14813694]
[1721421873956,0.00078336,67149.0,67148.0,3.99378737]
[1721421875946,0.00078336,67149.0,67148.0,3.93168737]
[1721421876632,0.00078336,67149.0,67148.0,3.932049]
[1721421877249,0.00078336,67149.0,67148.0,3.994849]
[1721421877452,0.00078336,67149.0,67148.0,3.932049]
[1721421877671,0.00078336,67149.0,67148.0,3.5526]
[1721421877870,0.06148336,67149.0,67148.0,3.5526]
[1721421878110,0.06148336,67149.0,67148.0,3.0526]